fUSD/lending_fUSD_20241219
["ID","MTS","AMOUNT","RATE_DAILY","PERIOD"]
[346018623,1734627043779,-500.0,0.00024318,4]
[346018624,1734627043788,-500.0,0.00024318,4]
[346018625,1734627043798,-500.0,0.00024318,4]
[346018626,1734627043807,-500.0,0.00024318,4]
[346018627,1734627043817,-1400.0,0.000244,8]
[346018628,1734627043826,-177.65695457,0.00024447,2]
[346018629,1734627043836,-238.92,0.00024466,2]
[346018630,1734627043845,-1400.0,0.000245,8]
[346018631,1734627043855,-427.73,0.00024546,4]
[346018632,1734627043864,-500.0,0.00024546,4]
[346018633,1734627043873,-500.0,0.00024546,4]
[346018634,1734627043883,-477.86197098,0.00024546,4]
[346018635,1734627043895,-22.13802902,0.00024546,4]
[346018636,1734627043904,-500.0,0.00024546,4]
[346018637,1734627043913,-500.0,0.00024546,4]
[346018638,1734627043922,-500.0,0.00024546,4]
[346018639,1734627043931,-500.0,0.00024546,4]
[346018640,1734627043940,-500.0,0.00024546,4]
[346018641,1734627043952,-500.0,0.00024546,4]
[346018642,1734627043962,-232.52,0.00024546,4]
[346018643,1734627043974,-500.0,0.00024546,4]
[346018644,1734627043983,-500.0,0.00024546,4]
[346018645,1734627043993,-500.0,0.00024546,4]
[346018646,1734627044002,-500.0,0.00024546,4]
[346018647,1734627044013,-500.0,0.00024546,4]
[346018648,1734627044022,-500.0,0.00024546,4]
[346018649,1734627044031,-500.0,0.00024546,4]
[346018650,1734627044040,-500.0,0.00024546,4]
[346018651,1734627044051,-623.27,0.00024546,4]
[346018652,1734627044060,-500.0,0.00024546,4]
[346018653,1734627044070,-500.0,0.00024546,4]
[346018654,1734627044079,-377.4173497,0.00024546,4]
[346018655,1734627044091,-354.6226503,0.00024546,4]
[346018656,1734627044100,-500.0,0.00024546,4]
[346018657,1734627044109,-65.35034969,0.00024546,4]
[346018658,1734627044120,-434.64965031,0.00024546,4]
[346018659,1734627044130,-500.0,0.00024546,4]
[346018660,1734627044139,-500.0,0.00024546,4]
[346018661,1734627044148,-500.0,0.00024546,4]
[346018662,1734627044157,-500.0,0.00024546,4]
[346018663,1734627044167,-500.0,0.00024546,4]
[346018664,1734627044176,-500.0,0.00024546,4]
[346018665,1734627044185,-500.0,0.00024546,4]
[346018666,1734627044194,-500.0,0.00024546,4]
[346018667,1734627044205,-500.0,0.00024546,4]
[346018668,1734627044215,-500.0,0.00024546,4]
[346018669,1734627044224,-1306.62,0.00024546,4]
[346018670,1734627044234,-317.79942179,0.00024546,4]
[346018671,1734627044245,-210.93057821,0.00024546,4]
[346018672,1734627044255,-500.0,0.00024546,4]
[346018673,1734627044264,-202.14301178,0.00024546,4]
[346018674,1734627044280,-173.53386809,0.00024546,4]
[346018675,1734627044289,-500.0,0.00024546,4]
[346018676,1734627044298,-500.0,0.00024546,4]
[346018677,1734627044307,-597.18,0.00024546,4]
[346018678,1734627044316,-521.1,0.00024546,4]
[346018679,1734627044326,-321.90168408,0.00024546,4]
[346018680,1734627044337,-178.09831592,0.00024546,4]
[346018681,1734627044346,-500.0,0.00024546,4]
[346018682,1734627044355,-500.0,0.00024546,4]
[346018683,1734627044364,-500.0,0.00024546,4]
[346018684,1734627044374,-500.0,0.00024546,4]
[346018685,1734627044383,-500.0,0.00024546,4]
[346018686,1734627044392,-418.84350321,0.00024546,4]
[346018687,1734627044402,-500.0,0.00024546,4]
[346018688,1734627044411,-500.0,0.00024546,4]
[346018689,1734627044421,-500.0,0.00024546,4]
[346018690,1734627044430,-500.0,0.00024546,4]
[346018691,1734627044440,-500.0,0.00024546,4]
[346018692,1734627044451,-500.0,0.00024546,4]
[346018693,1734627044461,-599.94,0.00024546,4]
[346018694,1734627044471,-500.0,0.00024546,4]
[346018695,1734627044480,-500.0,0.00024546,4]
[346018696,1734627044490,-500.0,0.00024546,4]
[346018697,1734627044499,-500.0,0.00024546,4]
[346018698,1734627044508,-500.0,0.00024546,4]
[346018699,1734627044518,-734.08,0.00024546,4]
[346018700,1734627044527,-500.0,0.00024546,4]
[346018701,1734627044537,-500.0,0.00024546,4]
[346018702,1734627044546,-500.0,0.00024546,4]
[346018703,1734627044555,-516.1,0.00024546,4]
[346018704,1734627044565,-500.0,0.00024546,4]
[346018705,1734627044574,-500.0,0.00024546,4]
[346018706,1734627044583,-943.3,0.00024546,4]
[346018707,1734627044593,-581.66,0.00024546,4]
[346018708,1734627044603,-581.37,0.00024546,4]
[346018709,1734627044612,-500.0,0.00024546,4]
[346018710,1734627044622,-1050.61,0.00024546,4]
[346018711,1734627044631,-500.0,0.00024546,4]
[346018712,1734627044641,-500.0,0.00024546,4]
[346018713,1734627044650,-500.0,0.00024546,4]
[346018714,1734627044660,-500.0,0.00024546,4]
[346018715,1734627044670,-500.0,0.00024546,4]
[346018716,1734627044679,-500.0,0.00024546,4]
[346018717,1734627044689,-500.0,0.00024546,4]
[346018718,1734627044701,-500.0,0.00024546,4]
[346018719,1734627044711,-1099.06,0.00024546,4]
[346018720,1734627044720,-500.0,0.00024546,4]
[346018721,1734627044730,-500.0,0.00024546,4]
[346018722,1734627044739,-500.0,0.00024546,4]
[346018723,1734627044749,-183.0292086,0.00024546,4]
[346018724,1734627044759,-500.0,0.00024546,4]
[346018725,1734627044768,-500.0,0.00024546,4]
[346018726,1734627044777,-500.0,0.00024546,4]
[346018727,1734627044787,-500.0,0.00024546,4]
[346018728,1734627044797,-500.0,0.00024546,4]
[346018729,1734627044807,-500.0,0.00024546,4]
[346018730,1734627044816,-500.0,0.00024547,4]
[346018731,1734627044826,-500.0,0.00024547,4]
[346018732,1734627044835,-502.36757338,0.00024547,4]
[346018733,1734627044844,-500.0,0.00024547,4]
[346018734,1734627044853,-500.0,0.00024547,4]
[346018735,1734627044863,-500.0,0.00024547,4]
[346018736,1734627044873,-500.0,0.00024547,4]
[346018737,1734627044883,-500.0,0.00024547,4]
[346018738,1734627044892,-500.0,0.00024547,4]
[346018739,1734627044902,-1063.61,0.00024547,4]
[346018740,1734627044911,-500.0,0.00024547,4]
[346018741,1734627044921,-500.0,0.00024547,4]
[346018742,1734627044931,-500.0,0.00024547,4]
[346018743,1734627044940,-694.59,0.00024547,4]
[346018744,1734627044952,-500.0,0.00024547,4]
[346018745,1734627044962,-500.0,0.00024547,4]
[346018746,1734627044976,-660.73,0.00024547,4]
[346018747,1734627044986,-500.0,0.00024547,4]
[346018748,1734627044999,-500.0,0.00024547,4]
[346018749,1734627045011,-500.0,0.00024547,4]
[346018750,1734627045020,-500.0,0.00024547,4]
[346018751,1734627045030,-500.0,0.00024547,4]
[346018752,1734627045039,-520.08130034,0.00024547,4]
[346018753,1734627045049,-500.0,0.00024547,4]
[346018754,1734627045058,-500.0,0.00024547,4]
[346018755,1734627045069,-500.0,0.00024547,4]
[346018756,1734627045078,-672.99,0.00024547,4]
[346018757,1734627045088,-500.0,0.00024547,4]
[346018758,1734627045098,-500.0,0.00024547,4]
[346018759,1734627045107,-500.0,0.00024547,4]
[346018760,1734627045117,-561.05219195,0.00024547,4]
[346018761,1734627045127,-500.0,0.00024547,4]
[346018762,1734627045138,-500.0,0.00024547,4]
[346018763,1734627045149,-500.0,0.00024547,4]
[346018764,1734627045159,-500.0,0.00024547,4]
[346018765,1734627045169,-615.3,0.00024547,4]
[346018766,1734627045179,-500.0,0.00024547,4]
[346018767,1734627045188,-500.0,0.00024547,4]
[346018768,1734627045198,-500.0,0.00024547,4]
[346018769,1734627045210,-500.0,0.00024547,4]
[346018770,1734627045219,-500.0,0.00024547,4]
[346018771,1734627045229,-500.0,0.00024547,4]
[346018772,1734627045239,-500.0,0.00024547,4]
[346018773,1734627045249,-500.0,0.00024547,4]
[346018774,1734627045258,-500.0,0.00024547,4]
[346018775,1734627045268,-500.0,0.00024547,4]
[346018776,1734627045278,-500.0,0.00024547,4]
[346018777,1734627045288,-500.0,0.00024547,4]
[346018778,1734627045297,-500.0,0.00024547,4]
[346018779,1734627045307,-500.0,0.00024547,4]
[346018780,1734627045316,-500.0,0.00024547,4]
[346018781,1734627045325,-500.0,0.00024547,4]
[346018782,1734627045335,-500.0,0.00024547,4]
[346018783,1734627045344,-500.0,0.00024547,4]
[346018784,1734627045354,-500.0,0.00024547,4]
[346018785,1734627045363,-500.0,0.00024547,4]
[346018786,1734627045373,-500.0,0.00024547,4]
[346018787,1734627045382,-500.0,0.00024547,4]
[346018788,1734627045392,-500.0,0.00024547,4]
[346018789,1734627045401,-500.0,0.00024547,4]
[346018790,1734627045411,-500.0,0.00024547,4]
[346018791,1734627045420,-500.0,0.00024547,4]
[346018792,1734627045429,-500.0,0.00024547,4]
[346018793,1734627045438,-924.39,0.00024547,4]
[346018794,1734627045449,-1305.01,0.00024547,4]
[346018795,1734627045459,-607.6,0.00024547,4]
[346018796,1734627045468,-500.0,0.00024547,4]
[346018797,1734627045478,-500.0,0.00024547,4]
[346018798,1734627045487,-500.0,0.00024547,4]
[346018799,1734627045497,-500.0,0.00024547,4]
[346018800,1734627045506,-500.0,0.00024547,4]
[346018801,1734627045515,-167.54741403,0.00024547,4]
[346018802,1734627045524,-500.0,0.00024547,4]
[346018803,1734627045534,-500.0,0.00024547,4]
[346018804,1734627045543,-500.0,0.00024547,4]
[346018805,1734627045552,-500.0,0.00024547,4]
[346018807,1734627045562,-500.0,0.00024547,4]
[346018808,1734627045571,-500.0,0.00024547,4]
[346018809,1734627045580,-500.0,0.00024547,4]
[346018811,1734627045589,-500.0,0.00024547,4]
[346018813,1734627045598,-500.0,0.00024547,4]
[346018815,1734627045608,-500.0,0.00024547,4]
[346018816,1734627045617,-500.0,0.00024547,4]
[346018817,1734627045627,-500.0,0.00024547,4]
[346018818,1734627045636,-631.42,0.00024547,4]
[346018819,1734627045645,-500.0,0.00024547,4]
[346018820,1734627045656,-500.0,0.00024547,4]
[346018821,1734627045665,-500.0,0.00024547,4]
[346018822,1734627045675,-500.0,0.00024547,4]
[346018823,1734627045684,-727.25,0.00024547,4]
[346018824,1734627045694,-539.16,0.00024547,4]
[346018825,1734627045704,-500.0,0.00024547,4]
[346018826,1734627045714,-500.0,0.00024547,4]
[346018827,1734627045723,-500.0,0.00024563,4]
[346018828,1734627045732,-500.0,0.0002459,4]
[346018829,1734627045743,-500.0,0.0002459,4]
[346018830,1734627045752,-500.0,0.0002459,4]
[346018831,1734627045762,-533.48,0.0002459,4]
[346018832,1734627045771,-500.0,0.0002459,4]
[346018833,1734627045780,-500.0,0.0002459,4]
[346018834,1734627045790,-500.0,0.0002459,4]
[346018835,1734627045800,-538.63,0.0002459,4]
[346018836,1734627045809,-500.0,0.0002459,4]
[346018837,1734627045818,-393.84,0.0002459,4]
[346018838,1734627045827,-201.790483,0.00024592,4]
[346018839,1734627045837,-500.0,0.00024592,4]
[346018840,1734627045847,-500.0,0.00024592,4]
[346018841,1734627045856,-500.0,0.00024592,4]
[346018842,1734627045865,-500.0,0.00024592,4]
[346018843,1734627045874,-177.65695457,0.00024598,2]
[346018844,1734627045883,-1995.0,0.000246,2]
[346018845,1734627045893,-1400.0,0.000246,8]
[346018846,1734627045902,-1403.06520915,0.00024624,2]
[346018847,1734627045912,-96954.44739245,0.00024625,2]
[346018848,1734627045921,-2500.0,0.00024656,2]
[346018849,1734627045930,-150.0,0.00024658,2]
[346018850,1734627045939,-162.72074099,0.00024673,2]
[346018851,1734627045949,-1400.0,0.000247,9]
[346018852,1734627045961,-425.92150301,0.00024725,2]
[346018853,1734627045975,-177.65695457,0.00024749,2]
[346018854,1734627045984,-656.21974738,0.0002475,2]
[346018855,1734627045994,-150.0,0.00024759,2]
[346018856,1734627046003,-167.8604769,0.0002479,2]
[346018857,1734627046013,-500.0,0.00024799,4]
[346018858,1734627046022,-52878.82967687,0.000248,2]
[346018859,1734627046181,-1169.0,0.000248,2]
[346018860,1734627046193,-878.50821433,0.000248,2]
[346018861,1734627046205,-1937.5201942,0.000248,2]
[346018862,1734627046224,-1086.2058567,0.000248,2]
[346018863,1734627046355,-500.0,0.00023999,4]
[346018864,1734627046365,-500.0,0.00024272,4]
[346018865,1734627046374,-500.0,0.00024272,4]
[346018866,1734627046383,-500.0,0.00024546,4]
[346018867,1734627046392,-7952.07334636,0.000248,2]
[346018868,1734627046407,-18267.11344377,0.000248,2]
[346018869,1734627046418,-109740.7586,0.000248,2]
[346018870,1734627046429,-57391.1998,0.000248,2]
[346018871,1734627046443,-2285.60119097,0.000248,2]
[346018872,1734627046455,-533.6499934,0.000248,2]
[346018873,1734627046466,-3128.5475379,0.000248,2]
[346018874,1734627046477,-20240.05053331,0.000248,2]
[346018875,1734627046487,-1085.34506681,0.000248,2]
[346018876,1734627046496,-1400.0,0.000248,9]
[346018877,1734627046505,-999.96839337,0.000248,2]
[346018878,1734627046515,-238.04,0.0002482,4]
[346018879,1734627046524,-500.0,0.0002482,4]
[346018880,1734627046533,-500.0,0.0002482,4]
[346018881,1734627046543,-500.0,0.0002482,4]
[346018882,1734627046552,-500.0,0.0002482,4]
[346018883,1734627046561,-500.0,0.0002482,4]
[346018884,1734627046570,-500.0,0.0002482,4]
[346018886,1734627046579,-500.0,0.0002482,4]
[346018888,1734627046588,-500.0,0.0002482,4]
[346018890,1734627046597,-500.0,0.0002482,4]
[346018892,1734627046606,-500.0,0.0002482,4]
[346018894,1734627046615,-583.44270346,0.0002482,4]
[346018896,1734627046624,-500.0,0.0002482,4]
[346018898,1734627046633,-500.0,0.0002482,4]
[346018899,1734627046642,-500.0,0.0002482,4]
[346018901,1734627046652,-500.0,0.0002482,4]
[346018906,1734627046815,-500.0,0.0002482,4]
[346018907,1734627046826,-732.04,0.0002482,4]
[346018908,1734627046836,-500.0,0.0002482,4]
[346018909,1734627046845,-500.0,0.0002482,4]
[346018910,1734627046855,-500.0,0.0002482,4]
[346018911,1734627046864,-500.0,0.0002482,4]
[346018913,1734627046874,-500.0,0.0002482,4]
[346018915,1734627046883,-500.0,0.0002482,4]
[346018917,1734627046892,-500.0,0.0002482,4]
[346018919,1734627046901,-500.0,0.0002482,4]
[346018921,1734627046910,-500.0,0.0002482,4]
[346018923,1734627046919,-500.0,0.0002482,4]
[346018925,1734627046928,-500.0,0.0002482,4]
[346018927,1734627046937,-500.0,0.0002482,4]
[346018929,1734627046946,-1306.62,0.0002482,4]
[346018931,1734627046959,-528.73,0.0002482,4]
[346018933,1734627046970,-500.0,0.0002482,4]
[346018935,1734627046980,-500.0,0.0002482,4]
[346018937,1734627046989,-500.0,0.0002482,4]
[346018939,1734627046998,-597.18,0.0002482,4]
[346018941,1734627047009,-521.1,0.0002482,4]
[346018943,1734627047018,-500.0,0.0002482,4]
[346018945,1734627047028,-500.0,0.0002482,4]
[346018947,1734627047037,-500.0,0.0002482,4]
[346018949,1734627047048,-500.0,0.0002482,4]
[346018951,1734627047057,-500.0,0.0002482,4]
[346018952,1734627047067,-500.0,0.0002482,4]
[346018953,1734627047076,-339.22272227,0.0002482,4]
[346018954,1734627047085,-500.0,0.0002482,4]
[346018955,1734627047095,-500.0,0.0002482,4]
[346018956,1734627047104,-500.0,0.0002482,4]
[346018957,1734627047113,-500.0,0.0002482,4]
[346018958,1734627047123,-500.0,0.0002482,4]
[346018959,1734627047133,-599.94,0.0002482,4]
[346018960,1734627047143,-500.0,0.0002482,4]
[346018961,1734627047153,-500.0,0.0002482,4]
[346018962,1734627047163,-500.0,0.0002482,4]
[346018963,1734627047173,-500.0,0.0002482,4]
[346018964,1734627047182,-500.0,0.0002482,4]
[346018965,1734627047191,-734.08,0.0002482,4]
[346018966,1734627047202,-500.0,0.0002482,4]
[346018967,1734627047211,-500.0,0.0002482,4]
[346018968,1734627047221,-500.0,0.0002482,4]
[346018969,1734627047230,-516.1,0.0002482,4]
[346018970,1734627047239,-500.0,0.0002482,4]
[346018971,1734627047248,-500.0,0.0002482,4]
[346018972,1734627047258,-943.3,0.0002482,4]
[346018973,1734627047267,-581.66,0.0002482,4]
[346018974,1734627047276,-581.37,0.0002482,4]
[346018975,1734627047286,-500.0,0.0002482,4]
[346018976,1734627047295,-1050.61,0.0002482,4]
[346018977,1734627047304,-500.0,0.0002482,4]
[346018978,1734627047313,-500.0,0.0002482,4]
[346018979,1734627047323,-500.0,0.0002482,4]
[346018980,1734627047332,-500.0,0.0002482,4]
[346018981,1734627047341,-500.0,0.0002482,4]
[346018982,1734627047350,-500.0,0.0002482,4]
[346018983,1734627047360,-500.0,0.0002482,4]
[346018984,1734627047370,-500.0,0.0002482,4]
[346018985,1734627047379,-1099.06,0.0002482,4]
[346018986,1734627047389,-500.0,0.0002482,4]
[346018987,1734627047398,-500.0,0.0002482,4]
[346018988,1734627047407,-500.0,0.0002482,4]
[346018989,1734627047417,-500.0,0.0002482,4]
[346018990,1734627047426,-500.0,0.0002482,4]
[346018991,1734627047435,-500.0,0.0002482,4]
[346018992,1734627047444,-500.0,0.0002482,4]
[346018993,1734627047456,-500.0,0.0002482,4]
[346018994,1734627047466,-500.0,0.0002482,4]
[346018995,1734627047476,-500.0,0.0002482,4]
[346018996,1734627047485,-332.85077175,0.00024821,4]
[346018997,1734627047494,-501.84218647,0.00024821,4]
[346018998,1734627047503,-500.0,0.00024821,4]
[346018999,1734627047512,-500.0,0.00024821,4]
[346019000,1734627047521,-500.0,0.00024821,4]
[346019001,1734627047530,-500.0,0.00024821,4]
[346019002,1734627047539,-500.0,0.00024821,4]
[346019003,1734627047549,-1063.61,0.00024821,4]
[346019004,1734627047558,-500.0,0.00024821,4]
[346019005,1734627047568,-500.0,0.00024821,4]
[346019006,1734627047577,-503.59265694,0.00024821,4]
[346019007,1734627047586,-694.59,0.00024821,4]
[346019008,1734627047596,-500.0,0.00024821,4]
[346019009,1734627047605,-500.0,0.00024821,4]
[346019010,1734627047614,-660.73,0.00024821,4]
[346019011,1734627047622,-500.0,0.00024821,4]
[346019012,1734627047632,-500.0,0.00024821,4]
[346019013,1734627047641,-500.0,0.00024821,4]
[346019014,1734627047651,-500.0,0.00024821,4]
[346019015,1734627047660,-500.0,0.00024821,4]
[346019016,1734627047669,-500.0,0.00024821,4]
[346019017,1734627047678,-151.25466595,0.00024821,4]
[346019018,1734627047687,-500.0,0.00024821,4]
[346019019,1734627047697,-672.99,0.00024821,4]
[346019020,1734627047707,-500.0,0.00024821,4]
[346019021,1734627047716,-500.0,0.00024821,4]
[346019022,1734627047725,-500.0,0.00024821,4]
[346019023,1734627047735,-500.0,0.00024821,4]
[346019024,1734627047744,-503.93079243,0.00024821,4]
[346019025,1734627047753,-500.0,0.00024821,4]
[346019026,1734627047763,-500.0,0.00024821,4]
[346019027,1734627047773,-615.3,0.00024821,4]
[346019028,1734627047784,-500.0,0.00024821,4]
[346019029,1734627047794,-500.0,0.00024821,4]
[346019030,1734627047803,-500.0,0.00024821,4]
[346019031,1734627047812,-337.40117639,0.00024821,4]
[346019032,1734627047821,-500.0,0.00024821,4]
[346019033,1734627047830,-500.0,0.00024821,4]
[346019034,1734627047839,-500.0,0.00024821,4]
[346019035,1734627047849,-500.0,0.00024821,4]
[346019036,1734627047858,-500.0,0.00024821,4]
[346019037,1734627047867,-500.0,0.00024821,4]
[346019038,1734627047877,-500.0,0.00024821,4]
[346019039,1734627047886,-500.0,0.00024821,4]
[346019040,1734627047895,-500.0,0.00024821,4]
[346019041,1734627047904,-500.0,0.00024821,4]
[346019042,1734627047913,-500.0,0.00024821,4]
[346019043,1734627047922,-500.0,0.00024821,4]
[346019044,1734627047932,-500.0,0.00024821,4]
[346019045,1734627047944,-500.0,0.00024821,4]
[346019046,1734627047956,-500.0,0.00024821,4]
[346019047,1734627047969,-500.0,0.00024821,4]
[346019048,1734627047979,-500.0,0.00024821,4]
[346019049,1734627047988,-500.0,0.00024821,4]
[346019050,1734627047998,-500.0,0.00024821,4]
[346019051,1734627048011,-500.0,0.00024821,4]
[346019052,1734627048020,-924.39,0.00024821,4]
[346019053,1734627048030,-1305.01,0.00024821,4]
[346019054,1734627048040,-607.6,0.00024821,4]
[346019055,1734627048051,-500.0,0.00024821,4]
[346019056,1734627048060,-500.0,0.00024821,4]
[346019057,1734627048069,-500.0,0.00024821,4]
[346019058,1734627048079,-500.0,0.00024821,4]
[346019059,1734627048088,-500.0,0.00024821,4]
[346019060,1734627048098,-500.0,0.00024821,4]
[346019061,1734627048107,-500.0,0.00024821,4]
[346019062,1734627048116,-510.06697352,0.00024821,4]
[346019063,1734627048126,-166.5847255,0.00024821,4]
[346019064,1734627048135,-500.0,0.00024821,4]
[346019065,1734627048145,-500.0,0.00024821,4]
[346019066,1734627048155,-500.0,0.00024821,4]
[346019067,1734627048165,-500.0,0.00024821,4]
[346019068,1734627048174,-500.0,0.00024821,4]
[346019069,1734627048183,-500.0,0.00024821,4]
[346019070,1734627048192,-500.0,0.00024821,4]
[346019071,1734627048203,-631.42,0.00024821,4]
[346019072,1734627048213,-500.0,0.00024821,4]
[346019073,1734627048223,-500.0,0.00024821,4]
[346019074,1734627048232,-500.0,0.00024821,4]
[346019075,1734627048241,-500.0,0.00024821,4]
[346019076,1734627048250,-727.25,0.00024821,4]
[346019077,1734627048260,-539.16,0.00024821,4]
[346019078,1734627048269,-500.0,0.00024821,4]
[346019079,1734627048278,-395.85136219,0.00024821,4]
[346019080,1734627048288,-500.0,0.00024864,4]
[346019081,1734627048297,-500.0,0.00024864,4]
[346019082,1734627048306,-533.48,0.00024864,4]
[346019083,1734627048315,-500.0,0.00024864,4]
[346019084,1734627048324,-500.0,0.00024864,4]
[346019085,1734627048334,-500.0,0.00024864,4]
[346019086,1734627048343,-538.63,0.00024864,4]
[346019087,1734627048353,-500.0,0.00024864,4]
[346019088,1734627048362,-500.0,0.00024866,4]
[346019089,1734627048372,-500.0,0.00024866,4]
[346019090,1734627048381,-251.08430466,0.00024866,4]
[346019091,1734627048391,-3989.75843227,0.0002488,2]
[346019092,1734627048400,-161.07221604,0.00024898,2]
[346019093,1734627048409,-500.0,0.00024899,4]
[346019094,1734627048423,-922.02,0.000249,31]
[346019095,1734627048433,-922.02,0.000249,31]
[346019096,1734627048443,-922.02,0.000249,31]
[346019097,1734627048453,-922.02,0.000249,31]
[346019098,1734627048463,-922.02,0.000249,31]
[346019099,1734627048472,-922.02,0.000249,31]
[346019100,1734627048482,-922.02,0.000249,31]
[346019101,1734627048491,-922.02,0.000249,31]
[346019102,1734627048500,-922.02,0.000249,31]
[346019103,1734627048510,-922.02,0.000249,31]
[346019104,1734627048519,-922.02,0.000249,31]
[346019105,1734627048529,-922.02,0.000249,31]
[346019106,1734627048538,-922.02,0.000249,31]
[346019107,1734627048548,-922.02,0.000249,31]
[346019108,1734627048557,-922.02,0.000249,31]
[346019109,1734627048567,-177.65695457,0.000249,2]
[346019110,1734627048577,-162.71571543,0.000249,2]
[346019111,1734627048586,-21554.50868281,0.000249,2]
[346019112,1734627048596,-150.0,0.00024918,2]
[346019113,1734627048605,-310.2950184,0.00024973,2]
[346019114,1734627048615,-150.0,0.00024986,4]
[346019115,1734627048624,-167.8604769,0.00024988,2]
[346019116,1734627048634,-167.8604769,0.0002499,2]
[346019117,1734627048644,-900.0,0.00024993,9]
[346019118,1734627048653,-900.0,0.00024993,9]
[346019119,1734627048663,-900.0,0.00024993,9]
[346019120,1734627048672,-900.0,0.00024993,9]
[346019121,1734627048682,-900.0,0.00024993,9]
[346019122,1734627048692,-708.76553123,0.00024993,9]
[346019123,1734627420478,216.78,0.00010137,2]
[346019125,1734627479244,450.0,0.00013,2]
[346019149,1734628232115,-500.0,0.00021164,2]
[346019150,1734628232126,-603.84,0.00021492,2]
[346019151,1734628232135,-150.0,0.00022488,4]
[346019152,1734628232145,-150.0,0.00022488,4]
[346019153,1734628232154,-150.0,0.00022488,4]
[346019154,1734628232164,-150.0,0.00022488,4]
[346019155,1734628232173,-230.70459817,0.00022488,4]
[346019156,1734628232182,-150.0,0.00022488,4]
[346019157,1734628232192,-150.0,0.00022488,4]
[346019158,1734628232202,-150.0,0.00022571,4]
[346019159,1734628232214,-150.0,0.00022592,4]
[346019160,1734628232224,-150.0,0.00022654,4]
[346019161,1734628232233,-150.0,0.00022696,4]
[346019162,1734628232243,-150.0,0.00022738,4]
[346019163,1734628232252,-150.0,0.000228,4]
[346019164,1734628232262,-300.0,0.00022805,2]
[346019165,1734628232271,-250.0,0.00022806,2]
[346019166,1734628232281,-250.0,0.00022819,2]
[346019167,1734628232290,-150.0,0.00022821,4]
[346019168,1734628232299,-892.45,0.000229,2]
[346019169,1734628232309,-150.0,0.00022904,4]
[346019170,1734628232319,-150.0,0.00022904,4]
[346019171,1734628232329,-150.0,0.00022904,4]
[346019172,1734628232339,-17199.09,0.00022913,2]
[346019173,1734628232349,-150.0,0.00022987,4]
[346019174,1734628232358,-200.0,0.00023,2]
[346019175,1734628232368,-150.0,0.00023008,4]
[346019176,1734628232378,-150.0,0.00023071,4]
[346019177,1734628232388,-150.0,0.00023112,4]
[346019178,1734628232398,-150.0,0.00023112,4]
[346019179,1734628232408,-150.0,0.00023154,4]
[346019180,1734628232419,-150.0,0.00023171,30]
[346019181,1734628232429,-150.0,0.00023171,30]
[346019182,1734628232438,-176.15631936,0.00023171,30]